Workbook

Sheet Talousraportti
B2: VUOTUINEN TALOUSRAPORTTI | K2: 2016 | N2: Valitse raportointivuosi solusta L2
B3: YRITYKSEN NIMI | N3: Jos haluat muokata tietoja, valitse Taloustietojen syöttö -taulukko
B5: TÄRKEIMMÄT MITTARIT | D5: Muuta raportin tärkeimpiä mittareita napsauttamalla
B7: =Laskutoimitukset!B8 -> TUOTTO | D7: =Laskutoimitukset!B9 -> NETTOVOITTO | F7: =Laskutoimitukset!B10 -> KORKO | H7: =Laskutoimitukset!B11 -> POISTOT | J7: =Laskutoimitukset!B12 -> LIIKEVOITTO
B8: =IFERROR(Laskutoimitukset!G8,"") -> 180,584 € | D8: =IFERROR(Laskutoimitukset!G9,"") -> 67,475 € | F8: =IFERROR(Laskutoimitukset!G10,"") -> 3,789 € | H8: =IFERROR(Laskutoimitukset!G11,"") -> 5,547 € | J8: =IFERROR(Laskutoimitukset!G12,"") -> 73,426 €
B9: =Laskutoimitukset!H8 -> 0% | D9: =Laskutoimitukset!H9 -> 2% | F9: =Laskutoimitukset!H10 -> 14% | H9: =Laskutoimitukset!H11 -> 9% | J9: =Laskutoimitukset!H12 -> -5%
B13: KAIKKI MITTARIT | D13: Älä muokkaa alla olevia tietoja. Lisää taloustietoja napsauttamalla
B15: MITTARI | D15: ="RAPORTOINTIVUOSI ("&ValittuVuosi&")" -> RAPORTOINTIVUOSI (2016) | F15: ="EDELLINEN VUOSI ("&ValittuVuosi-1&")" -> EDELLINEN VUOSI (2015) | H15: % MUUTOS | I15: =CONCATENATE(Vuodet," VUODEN KEHITYS") -> 5 VUODEN KEHITYS
B16: =Laskutoimitukset!B15 -> TUOTTO | D16: =IF($B16="","",Laskutoimitukset!G15) -> 180,583.88 € | F16: =IF($B16="","",Laskutoimitukset!F15) -> 180,026.63 € | H16: =IFERROR(D16/F16-1,"") -> 0%
B17: =Laskutoimitukset!B16 -> LIIKETOIMINNAN KUSTANNUKSET | D17: =IF($B17="","",Laskutoimitukset!G16) -> 94,419.45 € | F17: =IF($B17="","",Laskutoimitukset!F16) -> 80,883.33 € | H17: 17%
B18: =Laskutoimitukset!B17 -> LIIKEVOITTO | D18: =IF($B18="","",Laskutoimitukset!G17) -> 73,425.99 € | F18: =IF($B18="","",Laskutoimitukset!F17) -> 77,317.83 € | H18: -5%
B19: =Laskutoimitukset!B18 -> POISTOT | D19: =IF($B19="","",Laskutoimitukset!G18) -> 5,546.88 € | F19: =IF($B19="","",Laskutoimitukset!F18) -> 5,068.42 € | H19: 9%
B20: =Laskutoimitukset!B19 -> KORKO | D20: =IF($B20="","",Laskutoimitukset!G19) -> 3,789.47 € | F20: =IF($B20="","",Laskutoimitukset!F19) -> 3,338.30 € | H20: 14%
B21: =Laskutoimitukset!B20 -> NETTOVOITTO | D21: =IF($B21="","",Laskutoimitukset!G20) -> 67,474.85 € | F21: =IF($B21="","",Laskutoimitukset!F20) -> 66,272.10 € | H21: 2%
B22: =Laskutoimitukset!B21 -> VEROT | D22: =IF($B22="","",Laskutoimitukset!G21) -> 31,408.25 € | F22: =IF($B22="","",Laskutoimitukset!F21) -> 29,424.53 € | H22: 7%
B23: =Laskutoimitukset!B22 -> VOITTO VEROJEN JÄLKEEN | D23: =IF($B23="","",Laskutoimitukset!G22) -> 50,247.68 € | F23: =IF($B23="","",Laskutoimitukset!F22) -> 42,438.20 € | H23: 18%
B24: =Laskutoimitukset!B23 -> MITTARI 1 | D24: =IF($B24="","",Laskutoimitukset!G23) -> 19.96 € | F24: =IF($B24="","",Laskutoimitukset!F23) -> 16.78 € | H24: 19%
B25: =Laskutoimitukset!B24 -> MITTARI 2 | D25: =IF($B25="","",Laskutoimitukset!G24) -> 26.01 € | F25: =IF($B25="","",Laskutoimitukset!F24) -> 21.84 € | H25: 19%
B26: =Laskutoimitukset!B25 -> MITTARI 3 | D26: =IF($B26="","",Laskutoimitukset!G25) -> 31.08 € | F26: =IF($B26="","",Laskutoimitukset!F25) -> 26.39 € | H26: 18%
B27: =Laskutoimitukset!B26 -> MITTARI 4 | D27: =IF($B27="","",Laskutoimitukset!G26) -> 14.92 € | F27: =IF($B27="","",Laskutoimitukset!F26) -> 14.59 € | H27: 2%
B28: =Laskutoimitukset!B27 -> MITTARI 5 | D28: =IF($B28="","",Laskutoimitukset!G27) -> 1.03 € | F28: =IF($B28="","",Laskutoimitukset!F27) -> 1.00 € | H28: 3%
B29: =Laskutoimitukset!B28 -> MITTARI 6 | D29: =IF($B29="","",Laskutoimitukset!G28) -> 0.34 € | F29: =IF($B29="","",Laskutoimitukset!F28) -> 0.30 € | H29: 13%
B30: =Laskutoimitukset!B29 ->  | D30: =IF($B30="","",Laskutoimitukset!G29) ->  | F30: =IF($B30="","",Laskutoimitukset!F29) -> 
B31: =Laskutoimitukset!B30 ->  | D31: =IF($B31="","",Laskutoimitukset!G30) ->  | F31: =IF($B31="","",Laskutoimitukset!F30) -> 
B32: =Laskutoimitukset!B31 ->  | D32: =IF($B32="","",Laskutoimitukset!G31) ->  | F32: =IF($B32="","",Laskutoimitukset!F31) -> 
B33: =Laskutoimitukset!B32 ->  | D33: =IF($B33="","",Laskutoimitukset!G32) ->  | F33: =IF($B33="","",Laskutoimitukset!F32) -> 
B34: =Laskutoimitukset!B33 ->  | D34: =IF($B34="","",Laskutoimitukset!G33) ->  | F34: =IF($B34="","",Laskutoimitukset!F33) -> 
B35: =Laskutoimitukset!B34 ->  | D35: =IF($B35="","",Laskutoimitukset!G34) ->  | F35: =IF($B35="","",Laskutoimitukset!F34) -> 
B36: =Laskutoimitukset!B35 ->  | D36: =IF($B36="","",Laskutoimitukset!G35) ->  | F36: =IF($B36="","",Laskutoimitukset!F35) -> 
B37: =Laskutoimitukset!B36 ->  | D37: =IF($B37="","",Laskutoimitukset!G36) ->  | F37: =IF($B37="","",Laskutoimitukset!F36) -> 
B38: =Laskutoimitukset!B37 ->  | D38: =IF($B38="","",Laskutoimitukset!G37) ->  | F38: =IF($B38="","",Laskutoimitukset!F37) -> 
B39: =Laskutoimitukset!B38 ->  | D39: =IF($B39="","",Laskutoimitukset!G38) ->  | F39: =IF($B39="","",Laskutoimitukset!F38) -> 
B40: =Laskutoimitukset!B39 ->  | D40: =IF($B40="","",Laskutoimitukset!G39) ->  | F40: =IF($B40="","",Laskutoimitukset!F39) -> 

Sheet Taloustietojen syöttö
B2: SYÖTÄ TALOUSTIEDOT
B3: VOIT MÄÄRITTÄÄ KORKEINTAAN 25 TÄRKEINTÄ MITTARIA 7 VUODELLE
B4: Näytä talousraportti napsauttamalla
B5: MITTARIN NIMI | C5: 2010 | D5: 2011 | E5: 2012 | F5: 2013 | G5: 2014 | H5: 2015 | I5: 2016
B6: TUOTTO | C6: 125,000.00 € | D6: 134,137.45 € | E6: 142,728.38 € | F6: 150,687.46 € | G6: 165,044.56 € | H6: 180,026.63 € | I6: 180,583.88 €
B7: LIIKETOIMINNAN KUSTANNUKSET | C7: 65,000.00 € | D7: 70,962.31 € | E7: 75,924.86 € | F7: 78,901.27 € | G7: 81,674.37 € | H7: 80,883.33 € | I7: 94,419.45 €
B8: LIIKEVOITTO | C8: 60,000.00 € | D8: 64,207.30 € | E8: 68,857.69 € | F8: 75,643.25 € | G8: 76,755.26 € | H8: 77,317.83 € | I8: 73,425.99 €
B9: POISTOT | C9: 4,500.00 € | D9: 4,517.77 € | E9: 4,656.92 € | F9: 4,974.21 € | G9: 5,024.11 € | H9: 5,068.42 € | I9: 5,546.88 €
B10: KORKO | C10: 2,500.00 € | D10: 2,745.82 € | E10: 2,893.11 € | F10: 3,136.12 € | G10: 3,148.53 € | H10: 3,338.30 € | I10: 3,789.47 €
B11: NETTOVOITTO | C11: 54,000.00 € | D11: 54,761.08 € | E11: 55,860.81 € | F11: 59,747.95 € | G11: 61,483.59 € | H11: 66,272.10 € | I11: 67,474.85 €
B12: VEROT | C12: 22,000.00 € | D12: 23,920.54 € | E12: 25,576.74 € | F12: 27,498.86 € | G12: 28,335.67 € | H12: 29,424.53 € | I12: 31,408.25 €
B13: VOITTO VEROJEN JÄLKEEN | C13: 32,000.00 € | D13: 34,943.49 € | E13: 38,418.53 € | F13: 39,895.05 € | G13: 40,607.73 € | H13: 42,438.20 € | I13: 50,247.68 €
B14: MITTARI 1 | C14: 12.80 € | D14: 12.81 € | E14: 13.78 € | F14: 14.29 € | G14: 15.57 € | H14: 16.78 € | I14: 19.96 €
B15: MITTARI 2 | C15: 18.20 € | D15: 18.59 € | E15: 19.22 € | F15: 20.17 € | G15: 20.48 € | H15: 21.84 € | I15: 26.01 €
B16: MITTARI 3 | C16: 19.10 € | D16: 20.55 € | E16: 21.87 € | F16: 23.19 € | G16: 24.67 € | H16: 26.39 € | I16: 31.08 €
B17: MITTARI 4 | C17: 12.10 € | D17: 12.21 € | E17: 12.59 € | F17: 13.70 € | G17: 13.76 € | H17: 14.59 € | I17: 14.92 €
B18: MITTARI 5 | C18: 0.75 € | D18: 0.79 € | E18: 0.85 € | F18: 0.89 € | G18: 0.91 € | H18: 1.00 € | I18: 1.03 €
B19: MITTARI 6 | C19: 0.23 € | D19: 0.25 € | E19: 0.27 € | F19: 0.28 € | G19: 0.29 € | H19: 0.30 € | I19: 0.34 €

Sheet Tärkeiden mittareiden asetukset
B2: MÄÄRITÄ TÄRKEIMMÄT MITTARIT TÄÄLLÄ
B3: VALITSE KORKEINTAAN 5 RAPORTIN YLÄREUNASSA NÄYTETTÄVÄÄ MITTARIA
B4: Näytä talousraportti napsauttamalla
B5: 1 | C5: TUOTTO | E5: =IF(ISBLANK(C5),"← Valitse arvon avattavasta luettelosta",IF(COUNTIF($C$5:C5,C5)>1,"Olet valinnut "&C5&" useammin kuin kerran.","")) -> 
B6: 2 | C6: NETTOVOITTO | E6: =IF(ISBLANK(C6),"← Valitse arvon avattavasta luettelosta",IF(COUNTIF($C$5:C6,C6)>1,"Olet valinnut "&C6&" useammin kuin kerran.","")) -> 
B7: 3 | C7: KORKO | E7: =IF(ISBLANK(C7),"← Valitse arvon avattavasta luettelosta",IF(COUNTIF($C$5:C7,C7)>1,"Olet valinnut "&C7&" useammin kuin kerran.","")) -> 
B8: 4 | C8: POISTOT | E8: =IF(ISBLANK(C8),"← Valitse arvon avattavasta luettelosta",IF(COUNTIF($C$5:C8,C8)>1,"Olet valinnut "&C8&" useammin kuin kerran.","")) -> 
B9: 5 | C9: LIIKEVOITTO | E9: =IF(ISBLANK(C9),"← Valitse arvon avattavasta luettelosta",IF(COUNTIF($C$5:C9,C9)>1,"Olet valinnut "&C9&" useammin kuin kerran.","")) -> 

Sheet Laskutoimitukset (hidden)
A1: Tätä laskentataulukkoa käytetään talousraportin laskutoimituksissa ja se tulisi pitää piilotettuna.
D2: Sijoitus
B3: Tämä vuosi | C3: =ValittuVuosi -> 2016 | D3: =MATCH(C3,EnsimmäisetVuodet,0)+1 -> 8
B4: Edellinen vuosi | C4: =C3-1 -> 2015 | D4: =MATCH(C4,EnsimmäisetVuodet,0)+1 -> 7
B6: Sijoitus | C6: =MATCH(C7,EnsimmäisetVuodet,0)+1 -> 4 | D6: =MATCH(D7,EnsimmäisetVuodet,0)+1 -> 5 | E6: =MATCH(E7,EnsimmäisetVuodet,0)+1 -> 6 | F6: =MATCH(F7,EnsimmäisetVuodet,0)+1 -> 7 | G6: =MATCH(G7,EnsimmäisetVuodet,0)+1 -> 8 | I6: =COUNT(C6:G6) -> 5
B7: Tärkeimmät mittarit | C7: =D7-1 -> 2012 | D7: =E7-1 -> 2013 | E7: =F7-1 -> 2014 | F7: =G7-1 -> 2015 | G7: =C3 -> 2016
A8: =MATCH(B8,'Taloustietojen syöttö'!$B$6:$B$30,0) -> 1 | B8: =IF('Tärkeiden mittareiden asetukset'!C5="","",'Tärkeiden mittareiden asetukset'!C5) -> TUOTTO | C8: =IFERROR(INDEX('Taloustietojen syöttö'!$B$6:$I$30,$A8,C$6),NA()) -> 142728.38 | D8: =IFERROR(INDEX('Taloustietojen syöttö'!$B$6:$I$30,$A8,D$6),NA()) -> 150687.46 | E8: =IFERROR(INDEX('Taloustietojen syöttö'!$B$6:$I$30,$A8,E$6),NA()) -> 165044.56 | F8: =IFERROR(INDEX('Taloustietojen syöttö'!$B$6:$I$30,$A8,F$6),NA()) -> 180026.63 | G8: =IFERROR(INDEX('Taloustietojen syöttö'!$B$6:$I$30,$A8,G$6),NA()) -> 180583.88 | H8: =IFERROR(G8/F8-1,"") -> 0%
A9: =MATCH(B9,'Taloustietojen syöttö'!$B$6:$B$30,0) -> 6 | B9: =IF('Tärkeiden mittareiden asetukset'!C6="","",'Tärkeiden mittareiden asetukset'!C6) -> NETTOVOITTO | C9: =IFERROR(INDEX('Taloustietojen syöttö'!$B$6:$I$30,$A9,C$6),NA()) -> 55860.81 | D9: =IFERROR(INDEX('Taloustietojen syöttö'!$B$6:$I$30,$A9,D$6),NA()) -> 59747.95 | E9: =IFERROR(INDEX('Taloustietojen syöttö'!$B$6:$I$30,$A9,E$6),NA()) -> 61483.59 | F9: =IFERROR(INDEX('Taloustietojen syöttö'!$B$6:$I$30,$A9,F$6),NA()) -> 66272.1 | G9: =IFERROR(INDEX('Taloustietojen syöttö'!$B$6:$I$30,$A9,G$6),NA()) -> 67474.85 | H9: =IFERROR(G9/F9-1,"") -> 2%
A10: =MATCH(B10,'Taloustietojen syöttö'!$B$6:$B$30,0) -> 5 | B10: =IF('Tärkeiden mittareiden asetukset'!C7="","",'Tärkeiden mittareiden asetukset'!C7) -> KORKO | C10: =IFERROR(INDEX('Taloustietojen syöttö'!$B$6:$I$30,$A10,C$6),NA()) -> 2893.11 | D10: =IFERROR(INDEX('Taloustietojen syöttö'!$B$6:$I$30,$A10,D$6),NA()) -> 3136.12 | E10: =IFERROR(INDEX('Taloustietojen syöttö'!$B$6:$I$30,$A10,E$6),NA()) -> 3148.53 | F10: =IFERROR(INDEX('Taloustietojen syöttö'!$B$6:$I$30,$A10,F$6),NA()) -> 3338.3 | G10: =IFERROR(INDEX('Taloustietojen syöttö'!$B$6:$I$30,$A10,G$6),NA()) -> 3789.47 | H10: 14%
A11: =MATCH(B11,'Taloustietojen syöttö'!$B$6:$B$30,0) -> 4 | B11: =IF('Tärkeiden mittareiden asetukset'!C8="","",'Tärkeiden mittareiden asetukset'!C8) -> POISTOT | C11: =IFERROR(INDEX('Taloustietojen syöttö'!$B$6:$I$30,$A11,C$6),NA()) -> 4656.92 | D11: =IFERROR(INDEX('Taloustietojen syöttö'!$B$6:$I$30,$A11,D$6),NA()) -> 4974.21 | E11: =IFERROR(INDEX('Taloustietojen syöttö'!$B$6:$I$30,$A11,E$6),NA()) -> 5024.11 | F11: =IFERROR(INDEX('Taloustietojen syöttö'!$B$6:$I$30,$A11,F$6),NA()) -> 5068.42 | G11: =IFERROR(INDEX('Taloustietojen syöttö'!$B$6:$I$30,$A11,G$6),NA()) -> 5546.88 | H11: 9%
A12: =MATCH(B12,'Taloustietojen syöttö'!$B$6:$B$30,0) -> 3 | B12: =IF('Tärkeiden mittareiden asetukset'!C9="","",'Tärkeiden mittareiden asetukset'!C9) -> LIIKEVOITTO | C12: =IFERROR(INDEX('Taloustietojen syöttö'!$B$6:$I$30,$A12,C$6),NA()) -> 68857.69 | D12: =IFERROR(INDEX('Taloustietojen syöttö'!$B$6:$I$30,$A12,D$6),NA()) -> 75643.25 | E12: =IFERROR(INDEX('Taloustietojen syöttö'!$B$6:$I$30,$A12,E$6),NA()) -> 76755.26 | F12: =IFERROR(INDEX('Taloustietojen syöttö'!$B$6:$I$30,$A12,F$6),NA()) -> 77317.83 | G12: =IFERROR(INDEX('Taloustietojen syöttö'!$B$6:$I$30,$A12,G$6),NA()) -> 73425.99 | H12: -5%
B14: Kaikki mittarit (toimii korkeintaan 25 mittarilla)
A15: =ROWS($B$15:B15) -> 1 | B15: =IF('Taloustietojen syöttö'!B6=0,"",'Taloustietojen syöttö'!B6) -> TUOTTO | C15: =IF(B15="",NA(),IFERROR(INDEX('Taloustietojen syöttö'!$B$6:$I$30,$A15,C$6),NA())) -> 142728.38 | D15: =IF(B15="",NA(),IFERROR(INDEX('Taloustietojen syöttö'!$B$6:$I$30,$A15,D$6),NA())) -> 150687.46 | E15: =IF(B15="",NA(),IFERROR(INDEX('Taloustietojen syöttö'!$B$6:$I$30,$A15,E$6),NA())) -> 165044.56 | F15: =IF(B15="",NA(),IFERROR(INDEX('Taloustietojen syöttö'!$B$6:$I$30,$A15,F$6),NA())) -> 180026.63 | G15: =IF(B15="",NA(),IFERROR(INDEX('Taloustietojen syöttö'!$B$6:$I$30,$A15,G$6),NA())) -> 180583.88
A16: =ROWS($B$15:B16) -> 2 | B16: =IF('Taloustietojen syöttö'!B7=0,"",'Taloustietojen syöttö'!B7) -> LIIKETOIMINNAN KUSTANNUKSET | C16: =IF(B16="",NA(),IFERROR(INDEX('Taloustietojen syöttö'!$B$6:$I$30,$A16,C$6),NA())) -> 75924.86 | D16: =IF(B16="",NA(),IFERROR(INDEX('Taloustietojen syöttö'!$B$6:$I$30,$A16,D$6),NA())) -> 78901.27 | E16: =IF(B16="",NA(),IFERROR(INDEX('Taloustietojen syöttö'!$B$6:$I$30,$A16,E$6),NA())) -> 81674.37 | F16: =IF(B16="",NA(),IFERROR(INDEX('Taloustietojen syöttö'!$B$6:$I$30,$A16,F$6),NA())) -> 80883.33 | G16: =IF(B16="",NA(),IFERROR(INDEX('Taloustietojen syöttö'!$B$6:$I$30,$A16,G$6),NA())) -> 94419.45
A17: =ROWS($B$15:B17) -> 3 | B17: =IF('Taloustietojen syöttö'!B8=0,"",'Taloustietojen syöttö'!B8) -> LIIKEVOITTO | C17: =IF(B17="",NA(),IFERROR(INDEX('Taloustietojen syöttö'!$B$6:$I$30,$A17,C$6),NA())) -> 68857.69 | D17: =IF(B17="",NA(),IFERROR(INDEX('Taloustietojen syöttö'!$B$6:$I$30,$A17,D$6),NA())) -> 75643.25 | E17: =IF(B17="",NA(),IFERROR(INDEX('Taloustietojen syöttö'!$B$6:$I$30,$A17,E$6),NA())) -> 76755.26 | F17: =IF(B17="",NA(),IFERROR(INDEX('Taloustietojen syöttö'!$B$6:$I$30,$A17,F$6),NA())) -> 77317.83 | G17: =IF(B17="",NA(),IFERROR(INDEX('Taloustietojen syöttö'!$B$6:$I$30,$A17,G$6),NA())) -> 73425.99
A18: =ROWS($B$15:B18) -> 4 | B18: =IF('Taloustietojen syöttö'!B9=0,"",'Taloustietojen syöttö'!B9) -> POISTOT | C18: =IF(B18="",NA(),IFERROR(INDEX('Taloustietojen syöttö'!$B$6:$I$30,$A18,C$6),NA())) -> 4656.92 | D18: =IF(B18="",NA(),IFERROR(INDEX('Taloustietojen syöttö'!$B$6:$I$30,$A18,D$6),NA())) -> 4974.21 | E18: =IF(B18="",NA(),IFERROR(INDEX('Taloustietojen syöttö'!$B$6:$I$30,$A18,E$6),NA())) -> 5024.11 | F18: =IF(B18="",NA(),IFERROR(INDEX('Taloustietojen syöttö'!$B$6:$I$30,$A18,F$6),NA())) -> 5068.42 | G18: =IF(B18="",NA(),IFERROR(INDEX('Taloustietojen syöttö'!$B$6:$I$30,$A18,G$6),NA())) -> 5546.88
A19: =ROWS($B$15:B19) -> 5 | B19: =IF('Taloustietojen syöttö'!B10=0,"",'Taloustietojen syöttö'!B10) -> KORKO | C19: =IF(B19="",NA(),IFERROR(INDEX('Taloustietojen syöttö'!$B$6:$I$30,$A19,C$6),NA())) -> 2893.11 | D19: =IF(B19="",NA(),IFERROR(INDEX('Taloustietojen syöttö'!$B$6:$I$30,$A19,D$6),NA())) -> 3136.12 | E19: =IF(B19="",NA(),IFERROR(INDEX('Taloustietojen syöttö'!$B$6:$I$30,$A19,E$6),NA())) -> 3148.53 | F19: =IF(B19="",NA(),IFERROR(INDEX('Taloustietojen syöttö'!$B$6:$I$30,$A19,F$6),NA())) -> 3338.3 | G19: =IF(B19="",NA(),IFERROR(INDEX('Taloustietojen syöttö'!$B$6:$I$30,$A19,G$6),NA())) -> 3789.47
A20: =ROWS($B$15:B20) -> 6 | B20: =IF('Taloustietojen syöttö'!B11=0,"",'Taloustietojen syöttö'!B11) -> NETTOVOITTO | C20: =IF(B20="",NA(),IFERROR(INDEX('Taloustietojen syöttö'!$B$6:$I$30,$A20,C$6),NA())) -> 55860.81 | D20: =IF(B20="",NA(),IFERROR(INDEX('Taloustietojen syöttö'!$B$6:$I$30,$A20,D$6),NA())) -> 59747.95 | E20: =IF(B20="",NA(),IFERROR(INDEX('Taloustietojen syöttö'!$B$6:$I$30,$A20,E$6),NA())) -> 61483.59 | F20: =IF(B20="",NA(),IFERROR(INDEX('Taloustietojen syöttö'!$B$6:$I$30,$A20,F$6),NA())) -> 66272.1 | G20: =IF(B20="",NA(),IFERROR(INDEX('Taloustietojen syöttö'!$B$6:$I$30,$A20,G$6),NA())) -> 67474.85
A21: =ROWS($B$15:B21) -> 7 | B21: =IF('Taloustietojen syöttö'!B12=0,"",'Taloustietojen syöttö'!B12) -> VEROT | C21: =IF(B21="",NA(),IFERROR(INDEX('Taloustietojen syöttö'!$B$6:$I$30,$A21,C$6),NA())) -> 25576.74 | D21: =IF(B21="",NA(),IFERROR(INDEX('Taloustietojen syöttö'!$B$6:$I$30,$A21,D$6),NA())) -> 27498.86 | E21: =IF(B21="",NA(),IFERROR(INDEX('Taloustietojen syöttö'!$B$6:$I$30,$A21,E$6),NA())) -> 28335.67 | F21: =IF(B21="",NA(),IFERROR(INDEX('Taloustietojen syöttö'!$B$6:$I$30,$A21,F$6),NA())) -> 29424.53 | G21: =IF(B21="",NA(),IFERROR(INDEX('Taloustietojen syöttö'!$B$6:$I$30,$A21,G$6),NA())) -> 31408.25
A22: =ROWS($B$15:B22) -> 8 | B22: =IF('Taloustietojen syöttö'!B13=0,"",'Taloustietojen syöttö'!B13) -> VOITTO VEROJEN JÄLKEEN | C22: =IF(B22="",NA(),IFERROR(INDEX('Taloustietojen syöttö'!$B$6:$I$30,$A22,C$6),NA())) -> 38418.53 | D22: =IF(B22="",NA(),IFERROR(INDEX('Taloustietojen syöttö'!$B$6:$I$30,$A22,D$6),NA())) -> 39895.05 | E22: =IF(B22="",NA(),IFERROR(INDEX('Taloustietojen syöttö'!$B$6:$I$30,$A22,E$6),NA())) -> 40607.73 | F22: =IF(B22="",NA(),IFERROR(INDEX('Taloustietojen syöttö'!$B$6:$I$30,$A22,F$6),NA())) -> 42438.2 | G22: =IF(B22="",NA(),IFERROR(INDEX('Taloustietojen syöttö'!$B$6:$I$30,$A22,G$6),NA())) -> 50247.68
A23: =ROWS($B$15:B23) -> 9 | B23: =IF('Taloustietojen syöttö'!B14=0,"",'Taloustietojen syöttö'!B14) -> MITTARI 1 | C23: =IF(B23="",NA(),IFERROR(INDEX('Taloustietojen syöttö'!$B$6:$I$30,$A23,C$6),NA())) -> 13.78 | D23: =IF(B23="",NA(),IFERROR(INDEX('Taloustietojen syöttö'!$B$6:$I$30,$A23,D$6),NA())) -> 14.29 | E23: =IF(B23="",NA(),IFERROR(INDEX('Taloustietojen syöttö'!$B$6:$I$30,$A23,E$6),NA())) -> 15.57 | F23: =IF(B23="",NA(),IFERROR(INDEX('Taloustietojen syöttö'!$B$6:$I$30,$A23,F$6),NA())) -> 16.78 | G23: =IF(B23="",NA(),IFERROR(INDEX('Taloustietojen syöttö'!$B$6:$I$30,$A23,G$6),NA())) -> 19.96
A24: =ROWS($B$15:B24) -> 10 | B24: =IF('Taloustietojen syöttö'!B15=0,"",'Taloustietojen syöttö'!B15) -> MITTARI 2 | C24: =IF(B24="",NA(),IFERROR(INDEX('Taloustietojen syöttö'!$B$6:$I$30,$A24,C$6),NA())) -> 19.22 | D24: =IF(B24="",NA(),IFERROR(INDEX('Taloustietojen syöttö'!$B$6:$I$30,$A24,D$6),NA())) -> 20.17 | E24: =IF(B24="",NA(),IFERROR(INDEX('Taloustietojen syöttö'!$B$6:$I$30,$A24,E$6),NA())) -> 20.48 | F24: =IF(B24="",NA(),IFERROR(INDEX('Taloustietojen syöttö'!$B$6:$I$30,$A24,F$6),NA())) -> 21.84 | G24: =IF(B24="",NA(),IFERROR(INDEX('Taloustietojen syöttö'!$B$6:$I$30,$A24,G$6),NA())) -> 26.01
A25: =ROWS($B$15:B25) -> 11 | B25: =IF('Taloustietojen syöttö'!B16=0,"",'Taloustietojen syöttö'!B16) -> MITTARI 3 | C25: =IF(B25="",NA(),IFERROR(INDEX('Taloustietojen syöttö'!$B$6:$I$30,$A25,C$6),NA())) -> 21.87 | D25: =IF(B25="",NA(),IFERROR(INDEX('Taloustietojen syöttö'!$B$6:$I$30,$A25,D$6),NA())) -> 23.19 | E25: =IF(B25="",NA(),IFERROR(INDEX('Taloustietojen syöttö'!$B$6:$I$30,$A25,E$6),NA())) -> 24.67 | F25: =IF(B25="",NA(),IFERROR(INDEX('Taloustietojen syöttö'!$B$6:$I$30,$A25,F$6),NA())) -> 26.39 | G25: =IF(B25="",NA(),IFERROR(INDEX('Taloustietojen syöttö'!$B$6:$I$30,$A25,G$6),NA())) -> 31.08
A26: =ROWS($B$15:B26) -> 12 | B26: =IF('Taloustietojen syöttö'!B17=0,"",'Taloustietojen syöttö'!B17) -> MITTARI 4 | C26: =IF(B26="",NA(),IFERROR(INDEX('Taloustietojen syöttö'!$B$6:$I$30,$A26,C$6),NA())) -> 12.59 | D26: =IF(B26="",NA(),IFERROR(INDEX('Taloustietojen syöttö'!$B$6:$I$30,$A26,D$6),NA())) -> 13.7 | E26: =IF(B26="",NA(),IFERROR(INDEX('Taloustietojen syöttö'!$B$6:$I$30,$A26,E$6),NA())) -> 13.76 | F26: =IF(B26="",NA(),IFERROR(INDEX('Taloustietojen syöttö'!$B$6:$I$30,$A26,F$6),NA())) -> 14.59 | G26: =IF(B26="",NA(),IFERROR(INDEX('Taloustietojen syöttö'!$B$6:$I$30,$A26,G$6),NA())) -> 14.92
A27: =ROWS($B$15:B27) -> 13 | B27: =IF('Taloustietojen syöttö'!B18=0,"",'Taloustietojen syöttö'!B18) -> MITTARI 5 | C27: =IF(B27="",NA(),IFERROR(INDEX('Taloustietojen syöttö'!$B$6:$I$30,$A27,C$6),NA())) -> 0.85 | D27: =IF(B27="",NA(),IFERROR(INDEX('Taloustietojen syöttö'!$B$6:$I$30,$A27,D$6),NA())) -> 0.89 | E27: =IF(B27="",NA(),IFERROR(INDEX('Taloustietojen syöttö'!$B$6:$I$30,$A27,E$6),NA())) -> 0.91 | F27: =IF(B27="",NA(),IFERROR(INDEX('Taloustietojen syöttö'!$B$6:$I$30,$A27,F$6),NA())) -> 1 | G27: =IF(B27="",NA(),IFERROR(INDEX('Taloustietojen syöttö'!$B$6:$I$30,$A27,G$6),NA())) -> 1.03
A28: =ROWS($B$15:B28) -> 14 | B28: =IF('Taloustietojen syöttö'!B19=0,"",'Taloustietojen syöttö'!B19) -> MITTARI 6 | C28: =IF(B28="",NA(),IFERROR(INDEX('Taloustietojen syöttö'!$B$6:$I$30,$A28,C$6),NA())) -> 0.27 | D28: =IF(B28="",NA(),IFERROR(INDEX('Taloustietojen syöttö'!$B$6:$I$30,$A28,D$6),NA())) -> 0.28 | E28: =IF(B28="",NA(),IFERROR(INDEX('Taloustietojen syöttö'!$B$6:$I$30,$A28,E$6),NA())) -> 0.29 | F28: =IF(B28="",NA(),IFERROR(INDEX('Taloustietojen syöttö'!$B$6:$I$30,$A28,F$6),NA())) -> 0.3 | G28: =IF(B28="",NA(),IFERROR(INDEX('Taloustietojen syöttö'!$B$6:$I$30,$A28,G$6),NA())) -> 0.34
A29: =ROWS($B$15:B29) -> 15 | B29: =IF('Taloustietojen syöttö'!B20=0,"",'Taloustietojen syöttö'!B20) ->  | C29: =IF(B29="",NA(),IFERROR(INDEX('Taloustietojen syöttö'!$B$6:$I$30,$A29,C$6),NA())) ->  | D29: =IF(B29="",NA(),IFERROR(INDEX('Taloustietojen syöttö'!$B$6:$I$30,$A29,D$6),NA())) ->  | E29: =IF(B29="",NA(),IFERROR(INDEX('Taloustietojen syöttö'!$B$6:$I$30,$A29,E$6),NA())) ->  | F29: =IF(B29="",NA(),IFERROR(INDEX('Taloustietojen syöttö'!$B$6:$I$30,$A29,F$6),NA())) ->  | G29: =IF(B29="",NA(),IFERROR(INDEX('Taloustietojen syöttö'!$B$6:$I$30,$A29,G$6),NA())) -> 
A30: =ROWS($B$15:B30) -> 16 | B30: =IF('Taloustietojen syöttö'!B21=0,"",'Taloustietojen syöttö'!B21) ->  | C30: =IF(B30="",NA(),IFERROR(INDEX('Taloustietojen syöttö'!$B$6:$I$30,$A30,C$6),NA())) ->  | D30: =IF(B30="",NA(),IFERROR(INDEX('Taloustietojen syöttö'!$B$6:$I$30,$A30,D$6),NA())) ->  | E30: =IF(B30="",NA(),IFERROR(INDEX('Taloustietojen syöttö'!$B$6:$I$30,$A30,E$6),NA())) ->  | F30: =IF(B30="",NA(),IFERROR(INDEX('Taloustietojen syöttö'!$B$6:$I$30,$A30,F$6),NA())) ->  | G30: =IF(B30="",NA(),IFERROR(INDEX('Taloustietojen syöttö'!$B$6:$I$30,$A30,G$6),NA())) -> 
A31: =ROWS($B$15:B31) -> 17 | B31: =IF('Taloustietojen syöttö'!B22=0,"",'Taloustietojen syöttö'!B22) ->  | C31: =IF(B31="",NA(),IFERROR(INDEX('Taloustietojen syöttö'!$B$6:$I$30,$A31,C$6),NA())) ->  | D31: =IF(B31="",NA(),IFERROR(INDEX('Taloustietojen syöttö'!$B$6:$I$30,$A31,D$6),NA())) ->  | E31: =IF(B31="",NA(),IFERROR(INDEX('Taloustietojen syöttö'!$B$6:$I$30,$A31,E$6),NA())) ->  | F31: =IF(B31="",NA(),IFERROR(INDEX('Taloustietojen syöttö'!$B$6:$I$30,$A31,F$6),NA())) ->  | G31: =IF(B31="",NA(),IFERROR(INDEX('Taloustietojen syöttö'!$B$6:$I$30,$A31,G$6),NA())) -> 
A32: =ROWS($B$15:B32) -> 18 | B32: =IF('Taloustietojen syöttö'!B23=0,"",'Taloustietojen syöttö'!B23) ->  | C32: =IF(B32="",NA(),IFERROR(INDEX('Taloustietojen syöttö'!$B$6:$I$30,$A32,C$6),NA())) ->  | D32: =IF(B32="",NA(),IFERROR(INDEX('Taloustietojen syöttö'!$B$6:$I$30,$A32,D$6),NA())) ->  | E32: =IF(B32="",NA(),IFERROR(INDEX('Taloustietojen syöttö'!$B$6:$I$30,$A32,E$6),NA())) ->  | F32: =IF(B32="",NA(),IFERROR(INDEX('Taloustietojen syöttö'!$B$6:$I$30,$A32,F$6),NA())) ->  | G32: =IF(B32="",NA(),IFERROR(INDEX('Taloustietojen syöttö'!$B$6:$I$30,$A32,G$6),NA())) -> 
A33: =ROWS($B$15:B33) -> 19 | B33: =IF('Taloustietojen syöttö'!B24=0,"",'Taloustietojen syöttö'!B24) ->  | C33: =IF(B33="",NA(),IFERROR(INDEX('Taloustietojen syöttö'!$B$6:$I$30,$A33,C$6),NA())) ->  | D33: =IF(B33="",NA(),IFERROR(INDEX('Taloustietojen syöttö'!$B$6:$I$30,$A33,D$6),NA())) ->  | E33: =IF(B33="",NA(),IFERROR(INDEX('Taloustietojen syöttö'!$B$6:$I$30,$A33,E$6),NA())) ->  | F33: =IF(B33="",NA(),IFERROR(INDEX('Taloustietojen syöttö'!$B$6:$I$30,$A33,F$6),NA())) ->  | G33: =IF(B33="",NA(),IFERROR(INDEX('Taloustietojen syöttö'!$B$6:$I$30,$A33,G$6),NA())) -> 
A34: =ROWS($B$15:B34) -> 20 | B34: =IF('Taloustietojen syöttö'!B25=0,"",'Taloustietojen syöttö'!B25) ->  | C34: =IF(B34="",NA(),IFERROR(INDEX('Taloustietojen syöttö'!$B$6:$I$30,$A34,C$6),NA())) ->  | D34: =IF(B34="",NA(),IFERROR(INDEX('Taloustietojen syöttö'!$B$6:$I$30,$A34,D$6),NA())) ->  | E34: =IF(B34="",NA(),IFERROR(INDEX('Taloustietojen syöttö'!$B$6:$I$30,$A34,E$6),NA())) ->  | F34: =IF(B34="",NA(),IFERROR(INDEX('Taloustietojen syöttö'!$B$6:$I$30,$A34,F$6),NA())) ->  | G34: =IF(B34="",NA(),IFERROR(INDEX('Taloustietojen syöttö'!$B$6:$I$30,$A34,G$6),NA())) -> 
A35: =ROWS($B$15:B35) -> 21 | B35: =IF('Taloustietojen syöttö'!B26=0,"",'Taloustietojen syöttö'!B26) ->  | C35: =IF(B35="",NA(),IFERROR(INDEX('Taloustietojen syöttö'!$B$6:$I$30,$A35,C$6),NA())) ->  | D35: =IF(B35="",NA(),IFERROR(INDEX('Taloustietojen syöttö'!$B$6:$I$30,$A35,D$6),NA())) ->  | E35: =IF(B35="",NA(),IFERROR(INDEX('Taloustietojen syöttö'!$B$6:$I$30,$A35,E$6),NA())) ->  | F35: =IF(B35="",NA(),IFERROR(INDEX('Taloustietojen syöttö'!$B$6:$I$30,$A35,F$6),NA())) ->  | G35: =IF(B35="",NA(),IFERROR(INDEX('Taloustietojen syöttö'!$B$6:$I$30,$A35,G$6),NA())) -> 
A36: =ROWS($B$15:B36) -> 22 | B36: =IF('Taloustietojen syöttö'!B27=0,"",'Taloustietojen syöttö'!B27) ->  | C36: =IF(B36="",NA(),IFERROR(INDEX('Taloustietojen syöttö'!$B$6:$I$30,$A36,C$6),NA())) ->  | D36: =IF(B36="",NA(),IFERROR(INDEX('Taloustietojen syöttö'!$B$6:$I$30,$A36,D$6),NA())) ->  | E36: =IF(B36="",NA(),IFERROR(INDEX('Taloustietojen syöttö'!$B$6:$I$30,$A36,E$6),NA())) ->  | F36: =IF(B36="",NA(),IFERROR(INDEX('Taloustietojen syöttö'!$B$6:$I$30,$A36,F$6),NA())) ->  | G36: =IF(B36="",NA(),IFERROR(INDEX('Taloustietojen syöttö'!$B$6:$I$30,$A36,G$6),NA())) -> 
A37: =ROWS($B$15:B37) -> 23 | B37: =IF('Taloustietojen syöttö'!B28=0,"",'Taloustietojen syöttö'!B28) ->  | C37: =IF(B37="",NA(),IFERROR(INDEX('Taloustietojen syöttö'!$B$6:$I$30,$A37,C$6),NA())) ->  | D37: =IF(B37="",NA(),IFERROR(INDEX('Taloustietojen syöttö'!$B$6:$I$30,$A37,D$6),NA())) ->  | E37: =IF(B37="",NA(),IFERROR(INDEX('Taloustietojen syöttö'!$B$6:$I$30,$A37,E$6),NA())) ->  | F37: =IF(B37="",NA(),IFERROR(INDEX('Taloustietojen syöttö'!$B$6:$I$30,$A37,F$6),NA())) ->  | G37: =IF(B37="",NA(),IFERROR(INDEX('Taloustietojen syöttö'!$B$6:$I$30,$A37,G$6),NA())) -> 
A38: =ROWS($B$15:B38) -> 24 | B38: =IF('Taloustietojen syöttö'!B29=0,"",'Taloustietojen syöttö'!B29) ->  | C38: =IF(B38="",NA(),IFERROR(INDEX('Taloustietojen syöttö'!$B$6:$I$30,$A38,C$6),NA())) ->  | D38: =IF(B38="",NA(),IFERROR(INDEX('Taloustietojen syöttö'!$B$6:$I$30,$A38,D$6),NA())) ->  | E38: =IF(B38="",NA(),IFERROR(INDEX('Taloustietojen syöttö'!$B$6:$I$30,$A38,E$6),NA())) ->  | F38: =IF(B38="",NA(),IFERROR(INDEX('Taloustietojen syöttö'!$B$6:$I$30,$A38,F$6),NA())) ->  | G38: =IF(B38="",NA(),IFERROR(INDEX('Taloustietojen syöttö'!$B$6:$I$30,$A38,G$6),NA())) -> 
A39: =ROWS($B$15:B39) -> 25 | B39: =IF('Taloustietojen syöttö'!B30=0,"",'Taloustietojen syöttö'!B30) ->  | C39: =IF(B39="",NA(),IFERROR(INDEX('Taloustietojen syöttö'!$B$6:$I$30,$A39,C$6),NA())) ->  | D39: =IF(B39="",NA(),IFERROR(INDEX('Taloustietojen syöttö'!$B$6:$I$30,$A39,D$6),NA())) ->  | E39: =IF(B39="",NA(),IFERROR(INDEX('Taloustietojen syöttö'!$B$6:$I$30,$A39,E$6),NA())) ->  | F39: =IF(B39="",NA(),IFERROR(INDEX('Taloustietojen syöttö'!$B$6:$I$30,$A39,F$6),NA())) ->  | G39: =IF(B39="",NA(),IFERROR(INDEX('Taloustietojen syöttö'!$B$6:$I$30,$A39,G$6),NA())) -> 
